[Event "8th Menchik Memorial 2024"]
[Site "London"]
[Date "2024.03.25"]
[Round "7.2"]
[White "Garcia Martin, Marta"]
[Black "Hunt, Harriet V"]
[Result "0-1"]
[ECO "B50"]
[WhiteElo "2356"]
[BlackElo "2307"]
[Annotator "RC"]
[PlyCount "116"]
[EventDate "2024.03.22"]
[EventType "tourn"]
[EventCountry "ENG"]
[SourceTitle "playchess.com"]
[Source "ChessBase"]
[SourceQuality "1"]
[TimeControl "5400+30"]

1. e4 {[%emt 0:03:03]} c5 {[%emt 0:00:09]} 2. Nf3 {[%emt 0:00:09]} d6 {[%emt 0:00:10]} 3. c3 {[%emt 0:00:20]} Nf6 {[%emt 0:00:38]} 4. Be2 {[%emt 0:00:07]} g6 {[%emt 0:05:56]} 5. O-O {[%emt 0:00:13]} Bg7 {[%emt 0:00:52]} 6. Bb5+ {[%emt 0:00:16]} Nbd7 {[%emt 0:03:58]} 7. Re1 {[%emt 0:00:34]} a6 {[%emt 0:00:51]} 8. Bf1 {[%emt 0:00:19]} e5 {[%emt 0:10:01]} 9. d4 {[%emt 0:00:53]} Qc7 {[%emt 0:02:18]} 10. a4 {[%emt 0:05:59]} O-O {[%emt 0:05:51]} 11. d5 {[%emt 0:09:36]} h6 {[%emt 0:06:55]} 12. Na3 {[%emt 0:01:13]} Ne8 {[%emt 0:01:38]} 13. b4 {[%emt 0:04:06]} Kh7 {[%emt 0:02:54]} 14. Nc4 {[%emt 0:20:24]} f5 {[%emt 0:04:32]} 15. Nfd2 {[%emt 0:00:42]} b6 {[%emt 0:05:33]} 16. Bd3 {[%emt 0:09:42]} f4 {[%emt 0:07:54]} 17. Be2 {[%emt 0:00:30]} Nef6 {[%emt 0:02:53]} 18. Rb1 {[%emt 0:08:16]} Rb8 {[%emt 0:02:02]} 19. g3 {[%emt 0:06:36]} b5 {[%emt 0:05:58]} 20. axb5 {[%emt 0:00:38]} axb5 {[%emt 0:00:05]} 21. Na5 {[%emt 0:00:07]} c4 {[%emt 0:00:41]} 22. Bf1 {[%emt 0:04:18]} Nb6 {[%emt 0:05:14]} 23. Nc6 {[%emt 0:03:33]} fxg3 {[%emt 0:01:41]} 24. hxg3 {[%emt 0:00:42]} Ra8 {[%emt 0:00:00]} 25. Bg2 {[%emt 0:00:45]} Bd7 {[%emt 0:01:45]} 26. Na5 {[%emt 0:00:25]} Na4 {[%emt 0:03:27]} 27. Qc2 {[%emt 0:00:26]} Ng4 {[%emt 0:04:05]} 28. Bf3 {[%emt 0:04:29]} Qb6 {[%emt 0:00:45]} 29. Rf1 {[%emt 0:02:27]} Rf7 {[%emt 0:03:46]} 30. Ndxc4 {[%emt 0:01:45]} bxc4 {[%emt 0:00:28]} 31. Bxg4 {[%emt 0:00:04]} Bxg4 {[%emt 0:01:57]} 32. Qxa4 {[%emt 0:00:07]} Rf3 {[%emt 0:02:14]} 33. Kg2 {[%emt 0:01:25]} Rxc3 {[%emt 0:03:45]} 34. Be3 {[%emt 0:03:35]} Rxe3 {[%emt 0:00:51]} 35. fxe3 {[%emt 0:00:03]} Qxe3 {[%emt 0:00:05]} 36. Qc2 {[%emt 0:02:17]} Be2 {[%emt 0:00:36]} 37. Nxc4 {[%emt 0:00:16]} Bxc4 {[%emt 0:01:11]} 38. Qxc4 {[%emt 0:00:04]} Ra3 {[%emt 0:00:05]} 39. Kh1 {[%emt 0:08:29]} Qxg3 {[%emt 0:00:41]} 40. Rb2 {[%emt 0:00:05]} Rc3 {[%emt 0:00:43]} 41. Qa2 {[%emt 0:00:04]} Qh4+ {[%emt 0:01:30]} 42. Rh2 {[%emt 0:00:10]} Qxe4+ {[%emt 0:00:29]} 43. Qg2 {[%emt 0:00:04]} Qd3 {[%emt 0:01:44]} 44. Rg1 {[%emt 0:02:36]} Rb3 {[%emt 0:03:39]} 45. Rh4 {[%emt 0:00:20]} Bf6 {[%emt 0:00:00]} 46. Rc4 {[%emt 0:00:39]} h5 {[%emt 0:00:00]} 47. Rc7+ {[%emt 0:00:36]} Kh6 {[%emt 0:00:00]} 48. Rc2 {[%emt 0:00:29]} Rxb4 {[%emt 0:00:03]} 49. Qd2+ {[%emt 0:00:11]} Qxd2 {[%emt 0:00:04]} 50. Rxd2 {[%emt 0:00:03]} e4 {[%emt 0:00:22]} 51. Rdg2 {[%emt 0:01:16]} g5 {[%emt 0:00:07]} 52. Re1 {[%emt 0:00:20]} Rd4 {[%emt 0:01:02]} 53. Rge2 {[%emt 0:00:11]} Rxd5 {[%emt 0:00:05]} 54. Rxe4 {[%emt 0:00:02]} Be5 {[%emt 0:00:32]} 55. R4e2 {[%emt 0:00:12]} Kg6 {[%emt 0:00:13]} 56. Rf1 {[%emt 0:00:08]} Rd4 {[%emt 0:00:25]} 57. Rf8 {[%emt 0:00:10]} h4 {[%emt 0:00:48]} 58. Rg2 {[%emt 0:00:20]} Bf4 {[%emt 0:01:04]} 0-1

[Event "8th Menchik Memorial 2024"]
[Site "London"]
[Date "2024.03.25"]
[Round "7.3"]
[White "Navrotescu, Andreea"]
[Black "Subramanian, Anusha"]
[Result "1-0"]
[ECO "E49"]
[WhiteElo "2200"]
[BlackElo "1997"]
[Annotator "RC"]
[PlyCount "169"]
[EventDate "2024.03.22"]
[EventType "tourn"]
[EventCountry "ENG"]
[SourceTitle "playchess.com"]
[Source "ChessBase"]
[SourceQuality "1"]
[TimeControl "5400+30"]

1. d4 {[%emt 0:00:03]} Nf6 {[%emt 0:00:06]} 2. c4 {[%emt 0:00:05]} e6 {[%emt 0:00:04]} 3. Nc3 {[%emt 0:00:08]} Bb4 {[%emt 0:00:07]} 4. f3 {[%emt 0:00:05]} d5 {[%emt 0:00:08]} 5. a3 {[%emt 0:00:11]} Bxc3+ {[%emt 0:00:06]} 6. bxc3 {[%emt 0:00:03]} O-O {[%emt 0:01:07]} 7. cxd5 {[%emt 0:00:53]} exd5 {[%emt 0:00:06]} 8. e3 {[%emt 0:00:27]} c5 {[%emt 0:00:57]} 9. Bd3 {[%emt 0:00:20]} Nc6 {[%emt 0:01:38]} 10. Ne2 {[%emt 0:00:30]} b6 {[%emt 0:01:01]} 11. O-O {[%emt 0:00:30]} Re8 {[%emt 0:00:35]} 12. Ng3 {[%emt 0:00:37]} Qc7 {[%emt 0:09:21]} 13. Ra2 {[%emt 0:02:29]} a5 {[%emt 0:02:32]} 14. Re1 {[%emt 0:06:01]} Bd7 {[%emt 0:05:33]} 15. Rf2 {[%emt 0:03:12]} h5 {[%emt 0:08:46]} 16. Bb1 {[%emt 0:04:00]} h4 {[%emt 0:03:14]} 17. Ne2 {[%emt 0:03:07]} a4 {[%emt 0:08:08]} 18. Nf4 {[%emt 0:00:49]} Qd6 {[%emt 0:03:51]} 19. Qd3 {[%emt 0:03:16]} Rad8 {[%emt 0:09:12]} 20. g4 {[%emt 0:02:19]} hxg3 {[%emt 0:09:00]} 21. hxg3 {[%emt 0:00:30]} Ne7 {[%emt 0:03:26]} 22. g4 {[%emt 0:09:08]} g5 {[%emt 0:02:10]} 23. Ne2 {[%emt 0:13:53]} Ng6 {[%emt 0:06:54]} 24. dxc5 {[%emt 0:08:53]} Qxc5 {[%emt 0:01:45]} 25. Qd4 {[%emt 0:05:46]} Ne5 {[%emt 0:05:21]} 26. Kg2 {[%emt 0:01:17]} Qb5 {[%emt 0:03:21]} 27. Bc2 {[%emt 0:00:56]} Rc8 {[%emt 0:01:17]} 28. Rh1 {[%emt 0:02:39]} Rc4 {[%emt 0:02:38]} 29. Qd2 {[%emt 0:00:02]} Bxg4 {[%emt 0:05:42]} 30. fxg4 {[%emt 0:01:25]} Rxg4+ {[%emt 0:00:29]} 31. Kf1 {[%emt 0:02:50]} Nc4 {[%emt 0:02:25]} 32. Qd3 {[%emt 0:00:54]} Ne4 {[%emt 0:00:16]} 33. Rfh2 {[%emt 0:02:53]} Rh4 {[%emt 0:02:25]} 34. Rxh4 {[%emt 0:00:43]} gxh4 {[%emt 0:00:02]} 35. Rxh4 {[%emt 0:00:26]} Qd7 {[%emt 0:01:07]} 36. Nf4 {[%emt 0:01:03]} Re5 {[%emt 0:01:13]} 37. Qd4 {[%emt 0:02:21]} Qf5 {[%emt 0:02:21]} 38. Bxe4 {[%emt 0:00:23]} Qxe4 {[%emt 0:00:23]} 39. Qxe4 {[%emt 0:00:20]} Rxe4 {[%emt 0:00:26]} 40. Rh3 {[%emt 0:00:42]} Re5 {[%emt 0:00:40]} 41. Kf2 {[%emt 0:00:23]} Kf8 {[%emt 0:00:33]} 42. Rh8+ {[%emt 0:01:27]} Ke7 {[%emt 0:00:08]} 43. Ra8 {[%emt 0:00:06]} b5 {[%emt 0:00:19]} 44. Ra7+ {[%emt 0:00:31]} Kf6 {[%emt 0:00:27]} 45. Rd7 {[%emt 0:00:35]} Kf5 {[%emt 0:00:59]} 46. Kf3 {[%emt 0:00:33]} f6 {[%emt 0:00:37]} 47. Rxd5 {[%emt 0:00:29]} Rxd5 {[%emt 0:00:28]} 48. Nxd5 {[%emt 0:00:21]} Ke5 {[%emt 0:00:17]} 49. Nc7 {[%emt 0:00:12]} Na5 {[%emt 0:00:45]} 50. Nxb5 {[%emt 0:00:30]} Nb3 {[%emt 0:00:16]} 51. Bb2 {[%emt 0:00:02]} Nd2+ {[%emt 0:00:13]} 52. Ke2 {[%emt 0:00:08]} Nc4 {[%emt 0:00:05]} 53. Bc1 {[%emt 0:00:03]} Ke4 {[%emt 0:00:18]} 54. Nd4 {[%emt 0:00:14]} f5 {[%emt 0:01:29]} 55. Nf3 {[%emt 0:00:08]} Na5 {[%emt 0:00:19]} 56. Nd2+ {[%emt 0:00:12]} Kd5 {[%emt 0:00:15]} 57. Kd3 {[%emt 0:00:02]} Kc5 {[%emt 0:00:11]} 58. c4 {[%emt 0:00:12]} Nb7 {[%emt 0:00:55]} 59. Bb2 {[%emt 0:00:06]} Nd6 {[%emt 0:00:15]} 60. Bd4+ {[%emt 0:00:03]} Kc6 {[%emt 0:00:08]} 61. Kc3 {[%emt 0:00:06]} Ne8 {[%emt 0:00:57]} 62. Kb4 {[%emt 0:00:02]} Nc7 {[%emt 0:00:07]} 63. Kxa4 {[%emt 0:00:05]} Ne6 {[%emt 0:00:10]} 64. Kb4 {[%emt 0:00:13]} f4 {[%emt 0:00:08]} 65. Nf3 {[%emt 0:00:11]} fxe3 {[%emt 0:00:28]} 66. Bxe3 {[%emt 0:00:01]} Nc7 {[%emt 0:00:15]} 67. a4 {[%emt 0:00:20]} Kb7 {[%emt 0:00:18]} 68. Bf4 {[%emt 0:00:44]} Ne6 {[%emt 0:00:15]} 69. Be5 {[%emt 0:00:04]} Nd8 {[%emt 0:00:11]} 70. Nd4 {[%emt 0:00:26]} Kb6 {[%emt 0:00:27]} 71. c5+ {[%emt 0:00:18]} Kb7 {[%emt 0:00:06]} 72. Kb5 {[%emt 0:00:13]} Nf7 {[%emt 0:00:12]} 73. Bf6 {[%emt 0:00:16]} Nh6 {[%emt 0:00:12]} 74. c6+ {[%emt 0:00:30]} Ka7 {[%emt 0:00:27]} 75. Ne6 {[%emt 0:01:02]} Nf5 {[%emt 0:00:32]} 76. Bd4+ {[%emt 0:00:48]} Ka8 {[%emt 0:00:29]} 77. Be5 {[%emt 0:01:17]} Ne7 {[%emt 0:00:19]} 78. Nc5 {[%emt 0:00:52]} Ka7 {[%emt 0:00:22]} 79. Nd7 {[%emt 0:00:22]} Nc8 {[%emt 0:01:13]} 80. Bd4+ {[%emt 0:00:43]} Ka8 {[%emt 0:00:18]} 81. Nb6+ {[%emt 0:00:15]} Nxb6 {[%emt 0:00:17]} 82. Kxb6 {[%emt 0:00:05]} Kb8 {[%emt 0:00:04]} 83. c7+ {[%emt 0:00:04]} Kc8 {[%emt 0:00:05]} 84. a5 {[%emt 0:00:07]} Kd7 {[%emt 0:00:05]} 85. Kb7 {[%emt 0:00:03]} 1-0

[Event "8th Menchik Memorial 2024"]
[Site "London"]
[Date "2024.03.25"]
[Round "7.4"]
[White "Steil-Antoni, Fiona"]
[Black "Sivanandan, Bodhana"]
[Result "1/2-1/2"]
[ECO "B14"]
[WhiteElo "2154"]
[BlackElo "2088"]
[Annotator "RC"]
[PlyCount "146"]
[EventDate "2024.03.22"]
[EventType "tourn"]
[EventCountry "ENG"]
[SourceTitle "playchess.com"]
[Source "ChessBase"]
[SourceQuality "1"]
[TimeControl "5400+30"]

1. e4 {[%emt 0:07:07]} c6 {[%emt 0:00:34]} 2. c4 {[%emt 0:00:05]} d5 {[%emt 0:00:50]} 3. exd5 {[%emt 0:00:07]} cxd5 {[%emt 0:00:29]} 4. cxd5 {[%emt 0:00:14]} Nf6 {[%emt 0:00:40]} 5. Nc3 {[%emt 0:00:31]} Nxd5 {[%emt 0:01:04]} 6. Nf3 {[%emt 0:00:42]} g6 {[%emt 0:04:42]} 7. d4 {[%emt 0:10:26]} Bg7 {[%emt 0:05:30]} 8. Bc4 {[%emt 0:06:06]} Nb6 {[%emt 0:04:42]} 9. Bb5+ {[%emt 0:08:42]} Bd7 {[%emt 0:04:43]} 10. Bxd7+ {[%emt 0:01:55]} N8xd7 {[%emt 0:01:41]} 11. O-O {[%emt 0:00:49]} O-O {[%emt 0:01:51]} 12. Re1 {[%emt 0:04:14]} Nf6 {[%emt 0:09:05]} 13. Qb3 {[%emt 0:01:45]} e6 {[%emt 0:04:31]} 14. a4 {[%emt 0:06:42]} Qc7 {[%emt 0:10:47]} 15. a5 {[%emt 0:00:46]} Nbd5 {[%emt 0:01:16]} 16. Nb5 {[%emt 0:05:29]} Qe7 {[%emt 0:02:22]} 17. Bg5 {[%emt 0:05:31]} a6 {[%emt 0:08:14]} 18. Nc3 {[%emt 0:03:20]} Qb4 {[%emt 0:05:39]} 19. Ra3 {[%emt 0:03:15]} Qxb3 {[%emt 0:04:37]} 20. Rxb3 {[%emt 0:00:12]} Rab8 {[%emt 0:00:30]} 21. Ne5 {[%emt 0:03:13]} Rfc8 {[%emt 0:02:32]} 22. Na4 {[%emt 0:07:45]} Bf8 {[%emt 0:07:39]} 23. Bxf6 {[%emt 0:05:28]} Nxf6 {[%emt 0:00:17]} 24. Nb6 {[%emt 0:01:35]} Rc2 {[%emt 0:07:02]} 25. g4 {[%emt 0:08:36]} Bd6 {[%emt 0:04:00]} 26. g5 {[%emt 0:05:04]} Bxe5 {[%emt 0:03:11]} 27. dxe5 {[%emt 0:00:01]} Nh5 {[%emt 0:01:48]} 28. Nd7 {[%emt 0:00:51]} Rbc8 {[%emt 0:01:14]} 29. Rxb7 {[%emt 0:04:29]} R2c7 {[%emt 0:00:48]} 30. Rxc7 {[%emt 0:00:00]} Rxc7 {[%emt 0:00:11]} 31. Rd1 {[%emt 0:00:00]} h6 {[%emt 0:01:29]} 32. Nf6+ {[%emt 0:00:00]} Nxf6 {[%emt 0:00:15]} 33. gxf6 {[%emt 0:00:00]} g5 {[%emt 0:00:54]} 34. Rd6 {[%emt 0:00:05]} Ra7 {[%emt 0:00:30]} 35. h4 {[%emt 0:00:52]} gxh4 {[%emt 0:00:21]} 36. Rd4 {[%emt 0:00:56]} h5 {[%emt 0:00:44]} 37. Rxh4 {[%emt 0:00:41]} Kh7 {[%emt 0:00:20]} 38. Rxh5+ {[%emt 0:00:40]} Kg6 {[%emt 0:00:14]} 39. Rh8 {[%emt 0:01:06]} Rb7 {[%emt 0:01:10]} 40. Ra8 {[%emt 0:00:30]} Rxb2 {[%emt 0:00:17]} 41. Rxa6 {[%emt 0:00:23]} Rb5 {[%emt 0:00:39]} 42. f4 {[%emt 0:00:36]} Rb4 {[%emt 0:00:09]} 43. Ra8 {[%emt 0:00:13]} Rxf4 {[%emt 0:00:27]} 44. Rg8+ {[%emt 0:00:28]} Kf5 {[%emt 0:00:31]} 45. Rg7 {[%emt 0:00:31]} Kxe5 {[%emt 0:00:31]} 46. Rxf7 {[%emt 0:00:12]} Ra4 {[%emt 0:00:22]} 47. Rh7 {[%emt 0:01:14]} Kxf6 {[%emt 0:00:14]} 48. Ra7 {[%emt 0:00:24]} e5 {[%emt 0:01:41]} 49. Kf2 {[%emt 0:00:19]} Ra3 {[%emt 0:00:41]} 50. Ra8 {[%emt 0:00:28]} Kf5 {[%emt 0:00:26]} 51. a6 {[%emt 0:00:21]} Kf4 {[%emt 0:00:37]} 52. Rf8+ {[%emt 0:00:31]} Ke4 {[%emt 0:00:09]} 53. Ra8 {[%emt 0:00:29]} Ra2+ {[%emt 0:00:27]} 54. Kf1 {[%emt 0:00:54]} Ke3 {[%emt 0:00:44]} 55. a7 {[%emt 0:00:35]} e4 {[%emt 0:00:26]} 56. Kg1 {[%emt 0:00:23]} Ra5 {[%emt 0:00:46]} 57. Kf1 {[%emt 0:00:27]} Ra6 {[%emt 0:00:08]} 58. Kg1 {[%emt 0:00:12]} Rg6+ {[%emt 0:00:19]} 59. Kf1 {[%emt 0:00:11]} Rg7 {[%emt 0:00:08]} 60. Rh8 {[%emt 0:00:55]} Rxa7 {[%emt 0:00:08]} 61. Rh3+ {[%emt 0:00:14]} Kd2 {[%emt 0:00:13]} 62. Rh2+ {[%emt 0:00:43]} Kd1 {[%emt 0:01:14]} 63. Rh8 {[%emt 0:00:55]} Rf7+ {[%emt 0:00:22]} 64. Kg2 {[%emt 0:00:18]} e3 {[%emt 0:00:42]} 65. Ra8 {[%emt 0:00:36]} e2 {[%emt 0:01:40]} 66. Ra1+ {[%emt 0:00:32]} Kd2 {[%emt 0:00:22]} 67. Ra2+ {[%emt 0:00:19]} Kd3 {[%emt 0:00:31]} 68. Ra3+ {[%emt 0:00:27]} Ke4 {[%emt 0:00:28]} 69. Ra4+ {[%emt 0:00:26]} Kd5 {[%emt 0:00:35]} 70. Ra5+ {[%emt 0:00:41]} Kc4 {[%emt 0:00:27]} 71. Ra4+ {[%emt 0:00:19]} Kd5 {[%emt 0:00:31]} 72. Ra5+ {[%emt 0:00:06]} Kc4 {[%emt 0:00:17]} 73. Ra4+ {[%emt 0:00:11]} Kd5 {[%emt 0:01:22]} 1/2-1/2

[Event "8th Menchik Memorial 2024"]
[Site "London"]
[Date "2024.03.25"]
[Round "7.5"]
[White "Hryshchenko, Kamila"]
[Black "Smith, Olivia"]
[Result "1/2-1/2"]
[ECO "B12"]
[WhiteElo "2186"]
[BlackElo "2054"]
[Annotator "RC"]
[PlyCount "117"]
[EventDate "2024.03.22"]
[EventType "tourn"]
[EventCountry "ENG"]
[SourceTitle "playchess.com"]
[Source "ChessBase"]
[SourceQuality "1"]
[TimeControl "5400+30"]

1. e4 {[%emt 0:00:22]} c6 {[%emt 0:00:08]} 2. d4 {[%emt 0:00:54]} d5 {[%emt 0:00:06]} 3. f3 {[%emt 0:00:12]} e6 {[%emt 0:01:09]} 4. Nc3 {[%emt 0:00:30]} Bb4 {[%emt 0:00:40]} 5. Nge2 {[%emt 0:09:07]} dxe4 {[%emt 0:20:40]} 6. fxe4 {[%emt 0:00:36]} e5 {[%emt 0:00:56]} 7. Be3 {[%emt 0:07:12]} Nf6 {[%emt 0:15:24]} 8. Qd3 {[%emt 0:02:22]} exd4 {[%emt 0:06:14]} 9. Bxd4 {[%emt 0:01:52]} c5 {[%emt 0:09:22]} 10. Bxf6 {[%emt 0:01:40]} Qxd3 {[%emt 0:00:41]} 11. cxd3 {[%emt 0:00:10]} gxf6 {[%emt 0:00:10]} 12. O-O-O {[%emt 0:02:31]} Be6 {[%emt 0:00:23]} 13. Nb5 {[%emt 0:12:17]} Ba5 {[%emt 0:04:57]} 14. d4 {[%emt 0:06:35]} cxd4 {[%emt 0:07:52]} 15. Nexd4 {[%emt 0:00:34]} Ke7 {[%emt 0:02:44]} 16. Be2 {[%emt 0:20:12]} Nd7 {[%emt 0:03:30]} 17. Kb1 {[%emt 0:02:44]} Rhg8 {[%emt 0:03:35]} 18. g3 {[%emt 0:03:12]} Ne5 {[%emt 0:01:50]} 19. Rhf1 {[%emt 0:04:41]} a6 {[%emt 0:03:30]} 20. Na3 {[%emt 0:02:20]} Rad8 {[%emt 0:03:17]} 21. Nac2 {[%emt 0:00:49]} Bb6 {[%emt 0:00:41]} 22. b3 {[%emt 0:05:13]} Ng4 {[%emt 0:04:47]} 23. Bc4 {[%emt 0:10:33]} Ne3 {[%emt 0:05:02]} 24. Nxe3 {[%emt 0:00:43]} Rxd4 {[%emt 0:01:09]} 25. Nd5+ {[%emt 0:00:41]} Bxd5 {[%emt 0:00:32]} 26. Bxd5 {[%emt 0:00:32]} Rxd1+ {[%emt 0:00:16]} 27. Rxd1 {[%emt 0:00:05]} Rb8 {[%emt 0:00:16]} 28. Rf1 {[%emt 0:00:29]} Be3 {[%emt 0:00:55]} 29. Rf3 {[%emt 0:00:32]} Bd4 {[%emt 0:00:32]} 30. Rf4 {[%emt 0:00:04]} b6 {[%emt 0:00:20]} 31. Rg4 {[%emt 0:00:29]} Kf8 {[%emt 0:01:28]} 32. Rf4 {[%emt 0:00:41]} Rd8 {[%emt 0:01:01]} 33. Kc2 {[%emt 0:00:19]} Be5 {[%emt 0:00:41]} 34. Rf5 {[%emt 0:00:46]} Rc8+ {[%emt 0:00:41]} 35. Kd2 {[%emt 0:00:12]} b5 {[%emt 0:00:31]} 36. Rf3 {[%emt 0:01:24]} b4 {[%emt 0:00:38]} 37. Rd3 {[%emt 0:01:58]} Rd8 {[%emt 0:00:55]} 38. Bb7 {[%emt 0:01:32]} Rxd3+ {[%emt 0:00:10]} 39. Kxd3 {[%emt 0:00:05]} a5 {[%emt 0:00:11]} 40. Kc4 {[%emt 0:00:05]} Ke7 {[%emt 0:00:32]} 41. Kb5 {[%emt 0:00:31]} Bc7 {[%emt 0:00:16]} 42. Kc6 {[%emt 0:00:05]} Bd8 {[%emt 0:01:58]} 43. Bc8 {[%emt 0:00:32]} Kf8 {[%emt 0:00:43]} 44. g4 {[%emt 0:00:13]} h6 {[%emt 0:00:14]} 45. h3 {[%emt 0:00:12]} Ke8 {[%emt 0:00:17]} 46. Ba6 {[%emt 0:00:26]} Kf8 {[%emt 0:00:40]} 47. Kd7 {[%emt 0:00:25]} Be7 {[%emt 0:00:11]} 48. Bc4 {[%emt 0:00:08]} Bc5 {[%emt 0:00:16]} 49. Kc6 {[%emt 0:00:12]} Be7 {[%emt 0:00:11]} 50. Kd5 {[%emt 0:00:07]} Bd8 {[%emt 0:00:23]} 51. h4 {[%emt 0:00:19]} Bb6 {[%emt 0:01:04]} 52. Kc6 {[%emt 0:00:20]} Bd8 {[%emt 0:00:33]} 53. h5 {[%emt 0:00:23]} Be7 {[%emt 0:00:55]} 54. Kd7 {[%emt 0:01:21]} Bc5 {[%emt 0:00:21]} 55. Kc6 {[%emt 0:00:16]} Be7 {[%emt 0:00:16]} 56. Kd5 {[%emt 0:00:01]} Bd8 {[%emt 0:01:03]} 57. e5 {[%emt 0:00:05]} fxe5 {[%emt 0:00:10]} 58. Kxe5 {[%emt 0:00:02]} Bg5 {[%emt 0:00:38]} 59. Kd6 {[%emt 0:00:13]} 1/2-1/2

[Event "8th Menchik Memorial 2024"]
[Site "London"]
[Date "2024.03.25"]
[Round "8.1"]
[White "Arakhamia-Grant, Ketevan"]
[Black "Smith, Olivia"]
[Result "1-0"]
[ECO "C24"]
[WhiteElo "2290"]
[BlackElo "2054"]
[Annotator "RC"]
[PlyCount "127"]
[EventDate "2024.03.22"]
[EventType "tourn"]
[EventCountry "ENG"]
[SourceTitle "playchess.com"]
[Source "ChessBase"]
[SourceQuality "1"]
[TimeControl "5400+30"]

1. e4 {[%emt 0:03:05]} e5 {[%emt 0:00:07]} 2. Bc4 {[%emt 0:00:18]} Nf6 {[%emt 0:03:05]} 3. d3 {[%emt 0:00:13]} c6 {[%emt 0:00:47]} 4. Nf3 {[%emt 0:00:24]} d5 {[%emt 0:01:20]} 5. Bb3 {[%emt 0:00:09]} Bd6 {[%emt 0:10:14]} 6. O-O {[%emt 0:01:16]} h6 {[%emt 0:06:51]} 7. Re1 {[%emt 0:02:17]} dxe4 {[%emt 0:02:13]} 8. dxe4 {[%emt 0:00:24]} O-O {[%emt 0:01:00]} 9. Nbd2 {[%emt 0:01:37]} Bc7 {[%emt 0:00:31]} 10. Qe2 {[%emt 0:23:56]} Na6 {[%emt 0:02:46]} 11. a3 {[%emt 0:01:48]} Nc5 {[%emt 0:01:17]} 12. Ba2 {[%emt 0:00:36]} Bg4 {[%emt 0:05:34]} 13. h3 {[%emt 0:00:50]} Bh5 {[%emt 0:00:51]} 14. b4 {[%emt 0:02:43]} Ne6 {[%emt 0:04:49]} 15. Bxe6 {[%emt 0:00:19]} fxe6 {[%emt 0:00:04]} 16. Bb2 {[%emt 0:08:26]} Nd7 {[%emt 0:02:05]} 17. Rad1 {[%emt 0:50:39]} Qf6 {[%emt 0:00:52]} 18. Nc4 {[%emt 0:00:00]} Nb6 {[%emt 0:04:47]} 19. Nxb6 {[%emt 0:00:00]} Bxb6 {[%emt 0:03:37]} 20. Rd3 {[%emt 0:00:00]} Bc7 {[%emt 0:05:47]} 21. Qf1 {[%emt 0:00:00]} Bxf3 {[%emt 0:07:40]} 22. Rxf3 {[%emt 0:00:00]} Qg5 {[%emt 0:00:14]} 23. Bc1 {[%emt 0:00:00]} Qe7 {[%emt 0:01:41]} 24. Rxf8+ {[%emt 0:00:00]} Rxf8 {[%emt 0:00:19]} 25. c4 {[%emt 0:00:00]} Rd8 {[%emt 0:06:44]} 26. c5 {[%emt 0:00:00]} Rd4 {[%emt 0:02:03]} 27. Be3 {[%emt 0:00:00]} Rd7 {[%emt 0:01:18]} 28. Qe2 {[%emt 0:00:00]} Qf7 {[%emt 0:01:44]} 29. g3 {[%emt 0:00:00]} Bd8 {[%emt 0:00:55]} 30. Rd1 {[%emt 0:00:00]} Rxd1+ {[%emt 0:05:22]} 31. Qxd1 {[%emt 0:00:00]} Bc7 {[%emt 0:00:44]} 32. Kg2 {[%emt 0:00:00]} Kh7 {[%emt 0:02:03]} 33. Qd3 {[%emt 0:00:06]} a6 {[%emt 0:00:45]} 34. Bd2 {[%emt 0:00:30]} Kg8 {[%emt 0:01:20]} 35. Bc3 {[%emt 0:00:11]} Qe8 {[%emt 0:01:50]} 36. h4 {[%emt 0:03:30]} Qf7 {[%emt 0:01:29]} 37. Qd2 {[%emt 0:00:23]} Qe8 {[%emt 0:02:43]} 38. a4 {[%emt 0:00:25]} Qd8 {[%emt 0:08:38]} 39. Qxd8+ {[%emt 0:00:36]} Bxd8 {[%emt 0:00:12]} 40. Bxe5 {[%emt 0:00:07]} b6 {[%emt 0:01:57]} 41. Kf3 {[%emt 0:01:54]} bxc5 {[%emt 0:00:34]} 42. bxc5 {[%emt 0:00:04]} Ba5 {[%emt 0:00:30]} 43. h5 {[%emt 0:00:38]} Bb4 {[%emt 0:00:21]} 44. Bd4 {[%emt 0:00:24]} e5 {[%emt 0:00:50]} 45. Bxe5 {[%emt 0:00:34]} Bxc5 {[%emt 0:00:05]} 46. Ke2 {[%emt 0:00:11]} Kf7 {[%emt 0:00:45]} 47. f3 {[%emt 0:00:20]} g6 {[%emt 0:00:59]} 48. g4 {[%emt 0:00:42]} g5 {[%emt 0:01:01]} 49. Kd3 {[%emt 0:00:10]} Bf8 {[%emt 0:00:24]} 50. Kc4 {[%emt 0:00:50]} Ke6 {[%emt 0:01:04]} 51. Bd4 {[%emt 0:00:44]} Kd7 {[%emt 0:00:16]} 52. Be5 {[%emt 0:02:51]} Ke6 {[%emt 0:00:18]} 53. f4 {[%emt 0:00:25]} gxf4 {[%emt 0:00:46]} 54. Bxf4 {[%emt 0:00:04]} Kf6 {[%emt 0:00:23]} 55. Kd4 {[%emt 0:00:45]} Ke6 {[%emt 0:00:23]} 56. g5 {[%emt 0:02:13]} hxg5 {[%emt 0:00:38]} 57. Bxg5 {[%emt 0:00:03]} Bg7+ {[%emt 0:00:14]} 58. Kc5 {[%emt 0:00:39]} Ke5 {[%emt 0:00:09]} 59. Kxc6 {[%emt 0:00:56]} Kxe4 {[%emt 0:00:35]} 60. Kb6 {[%emt 0:00:36]} Kd5 {[%emt 0:00:57]} 61. a5 {[%emt 0:00:25]} Bd4+ {[%emt 0:00:57]} 62. Kxa6 {[%emt 0:00:29]} Bg7 {[%emt 0:00:29]} 63. Kb7 {[%emt 0:00:19]} Ke6 {[%emt 0:00:25]} 64. Be3 {[%emt 0:00:21]} 1-0